Cogmind - Beta 13 *** ADVENTURER MODE // 2024.04.12 @ 23:25:41 Player: Scribs Result: Self-destructed Performance ------------- Evolutions (1) 500 Regions Visited (3) 600 Robots Destroyed (13) 65 Value Destroyed (272) 272 Prototype IDs (0) 0 Alien Tech Used (0) 0 Bonus (0) 0 TOTAL SCORE: 1437 Bonus ------- None Cogmind --------- Core Integrity 291/400 Matter 190/300 Energy 160/160 System Corruption 0% Temperature Cool (0) Movement Walking (330) Ox3 Location -9/Mines Parts ------- > --- POWER (1) -------- Light Nuclear Core > --- PROPULSION (4) --- Aluminum Leg > --- UTILITY (2) ------ Large Storage Unit > --- WEAPON (2) ------- Particle Gun Grenade Launcher > --- INVENTORY (15) --- Light Ion Engine Aluminum Leg Improved Heat Sink Small Storage Unit Compact Matter Pod (0) Hardened Medium Armor Plating Hardened Medium Armor Plating Hardened Medium Armor Plating Hardlight Generator Hardlight Generator Assault Rifle Mining Claw Peak State ------------ > --- POWER ------------ Light Nuclear Core > --- PROPULSION ------- Aluminum Leg Aluminum Leg Aluminum Leg Aluminum Leg > --- UTILITY ---------- Large Storage Unit Hardened Medium Armor Plating > --- WEAPON ----------- Particle Gun Assault Rifle > --- INVENTORY -------- Light Ion Engine Aluminum Leg Improved Heat Sink Small Storage Unit Hardened Medium Armor Plating Hardened Medium Armor Plating Hardened Medium Armor Plating Hardlight Generator Grenade Launcher Mining Claw [Rating: 16] Favorites ----------- Power Light Nuclear Core Engine Light Ion Engine Power Core Light Nuclear Core Propulsion Aluminum Leg Leg Aluminum Leg Utility Small Storage Unit Storage Small Storage Unit Protection Hardened Medium Armor Plating Weapon Assault Rifle Energy Gun Particle Gun Ballistic Gun Assault Rifle Launcher Grenade Launcher Slashing Weapon Mining Claw Build | -11 -10 -9 -9 ------- Run | Yrd Mat Mat Min Slots Evolved 2 | . . 2 . Power . | . . . . Propulsion 2 | . . 2 . Utility . | . . . . Weapon . | . . . . Parts Attached 17 | 6 6 4 1 Power 2 | 1 1 . . Engine 1 | 1 . . . Core 1 | . 1 . . Reactor . | . . . . Propulsion 6 | 2 2 2 . Treads . | . . . . Leg 6 | 2 2 2 . Wheel . | . . . . Hover . | . . . . Flight . | . . . . Utility 3 | 1 . 2 . Device . | . . . . Storage 2 | 1 . 1 . Processor . | . . . . Hackware . | . . . . Protection 1 | . . 1 . Artifact . | . . . . Weapon 6 | 2 3 . 1 Energy Gun 1 | . 1 . . Energy Cannon . | . . . . Ballistic Gun 3 | 2 1 . . Ballistic Cannon . | . . . . Launcher 1 | . . . 1 Special Weapon . | . . . . Impact Weapon . | . . . . Slashing Weapon 1 | . 1 . . Piercing Weapon . | . . . . Special Melee Weapon . | . . . . Unidentified Prototypes . | . . . . Parts Lost 4 | . . . 4 Power . | . . . . Propulsion 3 | . . . 3 Utility 1 | . . . 1 Weapon . | . . . . Highest Loss Streak 4 | . . . 4 To Critical Strikes . | . . . . Average Slot Usage (%) 89 | . 85 100 98 Engine 3 | . 4 . . Core 9 | . 9 11 11 Leg 32 | . 28 44 42 Storage 13 | . 14 12 11 Protection 3 | . . 9 11 Energy Gun 5 | . 3 11 11 Ballistic Gun 18 | . 21 11 9 Slashing Weapon 1 | . 2 . . Naked Turns . | . . . . Heaviest Build 38 | 11 15 38 38 Greatest Support 40 | 20 20 40 40 Greatest Overweight (x) . | . . . . Average Overweight (x) . | . . . . Largest Inventory Capacity 15 | 8 8 15 15 Average Capacity 9 | 6 8 14 15 Most Carried 12 | 2 8 12 12 Average Carried 7 | 1 5 10 12 Final Capacity 15 | 8 8 15 15 Final Carried 12 | 2 8 12 12 Class Distribution -------------------- 68% | Mutant 31% | Scavenger-Mutant Dominant Class ---------------- Mutant | -10/Materials Scavenger-Mutant | -9/Materials Scavenger-Mutant | -9/Mines Resources | -11 -10 -9 -9 ----------- Run | Yrd Mat Mat Min Matter Collected 426 | 209 139 45 33 Remotely . | . . . . Salvage Created 380 | . 195 94 91 Parts 24 | . 14 4 6 Haulers Intercepted . | . . . . Recyclers Shooed 1 | . . . 1 Parts Field Recycled . | . . . . Retrieved Matter . | . . . . Parts Self-Destructed . | . . . . Prevented . | . . . . Kills | -11 -10 -9 -9 ------- Run | Yrd Mat Mat Min Combat Hostiles Destroyed 11 | . 6 2 3 Guns 11 | . 6 2 3 Classes Destroyed 5 | . 3 1 1 Worker 1 | . 1 . . Recycler 1 | . . . 1 Swarmer 6 | . 3 . 3 Grunt 3 | . 3 . . Sentry 2 | . . 2 . Best Kill Streak 4 | . 4 1 3 Combat Bots Only 3 | . 3 1 3 Max Kills in Single Turn 1 | . 1 1 1 Gunslinging . | . . . . Exploded . | . . . . Melee . | . . . . Uniques/NPCs Destroyed . | . . . . Combat | -11 -10 -9 -9 -------- Run | Yrd Mat Mat Min Hostile Shots Fired 73 | . 22 23 28 Missed 18 | . 10 7 1 Damage Taken 862 | . 89 185 588 Core 109 | . . 23 86 Absorbed by Shields . | . . . . Ignored by Resistances 241 | . 28 52 161 Core Remaining (%) 100 | 100 100 . . Volleys Fired 40 | . 18 9 13 Largest 2 | . 2 2 2 Hottest 85 | . 40 85 85 Shots Fired 72 | . 35 18 19 Gun 65 | . 35 18 12 Cannon . | . . . . Launcher 7 | . . . 7 Special . | . . . . Kinetic 50 | . 35 9 6 Thermal 15 | . . 9 6 Explosive 7 | . . . 7 Electromagnetic . | . . . . Robot Hit Streak 22 | . 19 21 22 Robot Miss Streak 1 | . 1 . 1 Penetration Max . | . . . . Secondary Targets 1 | . . . 1 Max Gunslinging Chain 1 | . . . 1 Shots Hit Robots 61 | . 27 18 16 Core Hits 33 | . 14 4 15 Critical Kills . | . . . . Critical Parts Destroyed . | . . . . Critical Strikes 3 | . . 3 . Burn 3 | . . 3 . Melee Attacks 3 | . 3 . . Impact . | . . . . Slashing 3 | . 3 . . Piercing . | . . . . Sneak Attacks . | . . . . Combat Hostiles . | . . . . Follow-up Attacks . | . . . . Damage Inflicted 866 | . 298 253 315 Guns 660 | . 272 253 135 Cannons . | . . . . Explosions 180 | . . . 180 Melee 26 | . 26 . . Ramming . | . . . . Kinetic 440 | . 272 113 55 Thermal 220 | . . 140 80 Explosive 180 | . . . 180 Electromagnetic . | . . . . Impact . | . . . . Slashing 26 | . 26 . . Piercing . | . . . . Highest Corruption . | . . . . Average Corruption . | . . . . Corruption Purged . | . . . . Corruption Blocked . | . . . . Overload Shots . | . . . . Overflow Damage . | . . . . Projectiles . | . . . . Explosions . | . . . . Melee . | . . . . Knockbacks . | . . . . Impact . | . . . . Kinetic . | . . . . Secondary . | . . . . Self-Inflicted Damage . | . . . . Shots . | . . . . Rammed . | . . . . Targets Rammed . | . . . . Kicked . | . . . . Crushed . | . . . . Highest Temperature 312 | . 27 312 216 Average Temperature 104 | . 5 135 110 Received Heat Transfer 141 | . 54 87 . Effects 1 | . . 1 . Damage (minor) 1 | . . 1 . Siege Activations . | . . . . Robots Corrupted . | . . . . Combat Hostiles . | . . . . Parts Fried . | . . . . Impact Corruptions . | . . . . Robots Melted . | . . . . Combat Hostiles . | . . . . Parts Melted 3 | . . 2 1 Heat Transferred 740 | . . 555 185 Parts Sabotaged . | . . . . Parts Stolen . | . . . . Parts Stripped . | . . . . Power Chain Reactions . | . . . . Alert | -11 -10 -9 -9 ------- Run | Yrd Mat Mat Min Peak Influence 176 | . 176 90 103 Initial 29 | . . . 29 Average 50 | . 57 25 94 Maximum Alert Level . | . . . . Low Security (%) 100 | 100 100 100 100 Level 1 . | . . . . Level 2 . | . . . . Level 3 . | . . . . Level 4 . | . . . . Level 5 . | . . . . High Security . | . . . . Max Security . | . . . . Squads Dispatched . | . . . . Investigation . | . . . . Extermination . | . . . . Reinforcement . | . . . . Assault . | . . . . Garrison . | . . . . Intercept . | . . . . Searches Triggered . | . . . . Construction Impeded . | . . . . Haulers Reinforced . | . . . . Active Scanning Responses . | . . . . Cargo Convoy Interrupts . | . . . . Stealth | -11 -10 -9 -9 --------- Run | Yrd Mat Mat Min Distress Signals . | . . . . Communications Jammed . | . . . . Distress Signals . | . . . . Times Spotted 20 | . 8 4 8 Peak Tracking Total 9 | . 3 2 9 Tactical Retreats 1 | . 1 . . Traps | -11 -10 -9 -9 ------- Run | Yrd Mat Mat Min Traps Triggered . | . . . . Indirectly . | . . . . Trap Hack Attempts . | . . . . Triggered . | . . . . Disarmed . | . . . . Reprogrammed . | . . . . Reused . | . . . . Traps Extracted . | . . . . Installed . | . . . . Triggered . | . . . . Machines | -11 -10 -9 -9 ---------- Run | Yrd Mat Mat Min Machines Disabled . | . . . . Max in Single Turn . | . . . . Machines Repaired . | . . . . Machines Dismantled . | . . . . Machines Sabotaged . | . . . . Overloaded Fab Kills . | . . . . Hacking | -11 -10 -9 -9 --------- Run | Yrd Mat Mat Min Machines Accessed 5 | . 4 1 . Terminals 4 | . 3 1 . Fabricators . | . . . . Repair Stations . | . . . . Recycling Units 1 | . 1 . . Scanalyzers . | . . . . Garrison Access . | . . . . Total Hacks 12 | . 9 3 . Successful 4 | . 4 . . Failed 8 | . 5 3 . Catastrophic . | . . . . Database Lockouts . | . . . . Manual 1 | . 1 . . Terminals 11 | . 8 3 . Fabricators . | . . . . Repair Stations . | . . . . Recycling Units 1 | . 1 . . Scanalyzers . | . . . . Garrison Access . | . . . . Terminal Hacks 3 | . 3 . . Record 2 | . 2 . . Alert Level 1 | . 1 . . Fabricator Hacks . | . . . . Repair Station Hacks . | . . . . Recycling Unit Hacks 1 | . 1 . . Report Inventory 1 | . 1 . . Scanalyzer . | . . . . Garrison Access Hacks . | . . . . Unauthorized Hacks . | . . . . Terminals . | . . . . Fabricators . | . . . . Repair Stations . | . . . . Recycling Units . | . . . . Scanalyzers . | . . . . Garrison Access . | . . . . Data Cores Recovered . | . . . . Used . | . . . . Hacking Detections 3 | . 2 1 . Full Trace Events 1 | . . 1 . Feedback Events . | . . . . Feedback Blocked . | . . . . Robot Schematics Acquired . | . . . . Robots Built . | . . . . Authchips . | . . . . Time . | . . . . Total Robot Build Rating . | . . . . Part Schematics Acquired . | . . . . Parts Built . | . . . . Authchips . | . . . . Time . | . . . . Total Part Build Rating . | . . . . Parts Repaired . | . . . . Time . | . . . . Parts Recycled . | . . . . Recycled Matter . | . . . . Retrieved Matter . | . . . . Retrieved Components . | . . . . Parts Scanalyzed . | . . . . Part Schematics Acquired . | . . . . Parts Damaged . | . . . . Bothacking | -11 -10 -9 -9 ------------ Run | Yrd Mat Mat Min Used RIF Installer . | . . . . Robots Hacked . | . . . . Non-combat . | . . . . Combat . | . . . . Robot Hacks Applied . | . . . . Relay Couplers Released . | . . . . Fabnet Peak Effective % . | . . . . Robots Rewired . | . . . . Allies Hacked . | . . . . Hacks Repelled . | . . . . Allies | -11 -10 -9 -9 -------- Run | Yrd Mat Mat Min Total Allies . | . . . . Largest Group . | . . . . Highest-Rated Group . | . . . . Highest-Rated Ally . | . . . . Total Orders . | . . . . Ally Attacks . | . . . . Total Damage . | . . . . Kills . | . . . . Allies Corrupted . | . . . . Allies Melted . | . . . . Intel | -11 -10 -9 -9 ------- Run | Yrd Mat Mat Min Robot Analysis Total . | . . . . Derelict Logs Recovered . | . . . . Drone Launches . | . . . . Drone Recoveries . | . . . . Exploration | -11 -10 -9 -9 ------------- Run | Yrd Mat Mat Min Turns Passed 946 | 68 598 181 99 Spaces Moved 625 | 49 409 113 54 Core 2 | 2 . . . Treads . | . . . . Legs 623 | 47 409 113 54 Wheels . | . . . . Hover . | . . . . Flight . | . . . . Fastest Speed 50 | 50 120 120 120 Average Speed 119 | 117 120 120 120 Slowest Speed 120 | 120 120 120 120 Overloaded Moves . | . . . . Propulsion Burnouts . | . . . . Robots Hopped . | . . . . Cave-ins Triggered . | . . . . Exploration Rate (%) 22 | 3 52 11 23 Regions Visited 3 Branch Regions 1 Pre-discovered Areas . | . . . . Known Exits Taken . | . . . . Unknown Exits Taken 3 | 1 1 1 . Scrap Searched . | . . . . Spaces Dug 1 | . 1 . . Terrain Destroyed 10 | . 1 . 9 Melee 1 | . 1 . . Projectile . | . . . . AOE 9 | . . . 9 Terrain Rammed . | . . . . Walls Destroyed . | . . . . Machines Disabled . | . . . . Actions | -11 -10 -9 -9 --------- Run | Yrd Mat Mat Min Total 743 | 56 479 140 68 Wait 38 | . 30 8 . Move 622 | 48 408 112 54 Hop . | . . . . Pick Up 16 | 2 8 6 . Fast Attach 8 | 6 1 1 . Attach 3 | . . 3 . Detach 2 | . 1 1 . Swap 6 | . 5 . 1 Drop 5 | . 5 . . Fire 40 | . 18 9 13 Melee 3 | . 3 . . Ram . | . . . . Kick . | . . . . Crush . | . . . . Escape Stasis . | . . . . Rewire . | . . . . Trap . | . . . . Miscellaneous . | . . . . Route ------- -11/Scrapyard -10/Materials -9/Materials -9/Mines History --------- Turn | Location | Event 5 | -11/Scrapyard | Discovered new exit (range 15) 69 | -11/Scrapyard | Entered Materials 320 | -10/Materials | Build established: Mutant 624 | -10/Materials | Discovered new exit (range 8) 667 | -10/Materials | Entered another Materials area 667 | -9/Materials | Evolved 2 slots: Propulsion x2 779 | -9/Materials | Discovered new exit (range 16) 848 | -9/Materials | Entered Mines 913 | -9/Mines | Assembled infested the area 947 | -9/Mines | Self-destructed Last Messages --------------- Flight Unit melted. S-10 Pest destroyed. Acquired 9 matter. Acquired 15 matter. Acquired 9 matter. ALERT: Infestation in the mines, dispatching Demolisher response squad. C-30 ARC bursts open, deploying its payload. D-53 Grenadier unfolds itself. K-01 Serf collects debris. Aluminum Leg destroyed. R-06 Scavenger destroyed. K-01 Serf collects debris. Aluminum Leg destroyed. K-01 Serf collects debris. Aluminum Leg destroyed. K-01 Serf collects debris. Hrd. Medium Armor Plating destroyed. as-49804 destroyed. T-07 Excavator destroyed. Map ----- +----------------------------------------------------+ | ?????????????????????????????????####### #????? | | ????????????????????????????????## ## #????? | | ???????????????????????????????## #????? | | ??????????????????????????????## ##????? | | ?????????????????????????????## ### ##?????? | | ????????????????????????????## ##?# #??????? | | ????????????????????????????# [ #??# #??????? | | ????????????????????????????# ** #??# #??????? | | ????????????????????????????# #??# #??????? | | ???????????????????????? #??## = ###??# #??????? | | ?????????????????????? #??# ####????# #??????? | | ???????????????????? ??# ######### ######?? | | ???????????????????? ### #?? | | ????????????????????? ## ############## #?? | | ?????????????????????# k ????????????# #?? | | ?????????????????????? u r ????????????# #?? | | ?????????????????????## * ????????????# #?? | | ???????????????????### % ????????????# #?? | | ???????????????????? % ## ????????????# #?? | | ????????????????????? d #?##??????????### #?? | | ?????????????????????# d #????????????## ##? | | ????????????????????## ##????????#### ## | | ????????????????????# #######?## # | | ????????????????????# = ### # | | ????????????????????# % ## ## | | ????????????????????# @ #########? | | ????????????????????# ##????????? | | ??????????????????# #?????????? | | ?????????????????# a #?????????? | | ????????????????# a ## #?????????? | | ???????????????# ########### #?????????? | | ??????????????# ???????????## ##?????????? | | ?????????????# a?????????????########??????????? | | ?????????????# ????????????????????????????????? | | ?????????????# ?????????????????????????????????? | | ?????????????? ??????????????????????????????????? | | ?????????????????????????????????????????????????? | | ?????????????????????????????????????????????????? | | ?????????????????????????????????????????????????? | | ?????????????????????????????????????????????????? | | ?????????????????????????????????????????????????? | | ?????????????????????????????????????????????????? | | ?????????????????????????????????????????????????? | | ?????????????????????????????????????????????????? | | ?????????????????????????????????????????????????? | | ?????????????????????????????????????????????????? | | ?????????????????????????????????????????????????? | | ?????????????????????????????????????????????????? | | ?????????????????????????????????????????????????? | | ?????????????????????????????????????????????????? | +----------------------------------------------------+ Best States ------------- Heat Dissipation 28 Energy Generation 14 Energy Capacity 160 Matter Stores 300 Matter Capacity 300 Sight Range 16 Terrain Scan Density 10 Armor Coverage 225 Resistance: KI 20 Resistance: TH 20 Resistance: EX 20 Resistance: EM 20 Resistance: I 20 Resistance: S 20 Resistance: P 20 Evasion (%) 55 Offensive Hacking 10 Item Schematics ----------------- None Robot Schematics ------------------ None Fabricated ------------ Nothing Alien Tech Used ----------------- None Achievements -------------- None Challenges ------------ None Game ------ Seed AssemblyLaserDevice Manual? 0 Play Time 00:10:33 Cumulative 36.5 hours Start 2024.04.12 @ 23:15:44 End 2024.04.12 @ 23:25:41 Sessions 1 Manual Loads 0 Difficulty Adventurer Special Mode None Game No. 41 Rogue 0 Adventurer 41 Explorer 0 Win Type - Total 0 Types 0/0/0/0/0/0/0/0/0 Lore% 20 Gallery% 34 Achievement% 26 Wizard Run 0 Options --------- Layout 1 ASCII 0 Keyboard 1 Movement Numpad Keybinds 0 Fullscreen 2 Font 24/Smallcaps Map View 50x35 Zoom Use 5% Tactical HUD 0 Map Filters NONE Filters NONE Steam 1 RUN: 72dc8152-a659-47d6-97b1-2ec527719edb